[Event "Late-Titled-Tuesday-Blitz-October-17-2023"]
[Site "Chess.com"]
[Date "2023.10.17"]
[Round "3"]
[White "SCIM"]
[Black "javierfreilemartin"]
[Result "1-0"]
[WhiteElo "2558"]
[BlackElo "2335"]
[TimeControl "180+1"]
[EndTime "14:28:08 PDT"]
[Termination "SCIM won by checkmate"]

1. e4 {[%clk 0:03:00.9]} 1... c5 {[%clk 0:02:59.2]} 2. Nf3 {[%clk 0:02:59.2]}
2... d6 {[%clk 0:02:55.1]} 3. d4 {[%clk 0:02:58.6]} 3... cxd4 {[%clk 0:02:55.2]}
4. Nxd4 {[%clk 0:02:59.5]} 4... Nf6 {[%clk 0:02:55]} 5. Nc3 {[%clk 0:02:59.7]}
5... Bd7 {[%clk 0:02:55.2]} 6. Bc4 {[%clk 0:02:58]} 6... e6 {[%clk 0:02:55]} 7.
O-O {[%clk 0:02:57.4]} 7... Nc6 {[%clk 0:02:54.9]} 8. Bg5 {[%clk 0:02:41]} 8...
a6 {[%clk 0:02:46.9]} 9. Bb3 {[%clk 0:02:39.1]} 9... Rc8 {[%clk 0:02:44]} 10.
Re1 {[%clk 0:02:33]} 10... Be7 {[%clk 0:02:42.8]} 11. Nf3 {[%clk 0:02:27.1]}
11... Ne5 {[%clk 0:02:23.9]} 12. Nxe5 {[%clk 0:02:17.2]} 12... dxe5 {[%clk
0:02:23.9]} 13. Qf3 {[%clk 0:02:13.2]} 13... Qc7 {[%clk 0:02:21.4]} 14. Rad1
{[%clk 0:02:10.3]} 14... Bc6 {[%clk 0:02:20.9]} 15. Qh3 {[%clk 0:02:05.2]} 15...
Rd8 {[%clk 0:02:05.3]} 16. Rxd8+ {[%clk 0:02:01.5]} 16... Qxd8 {[%clk
0:02:03.9]} 17. Rd1 {[%clk 0:01:58.4]} 17... Qc8 {[%clk 0:02:00.5]} 18. Qg3
{[%clk 0:01:39.7]} 18... Qc7 {[%clk 0:01:57.5]} 19. f3 {[%clk 0:01:32]} 19...
O-O {[%clk 0:01:18.6]} 20. Bh6 {[%clk 0:01:27.7]} 20... Nh5 {[%clk 0:01:07]} 21.
Qg4 {[%clk 0:01:27.4]} 21... Rd8 {[%clk 0:01:04.3]} 22. Qxh5 {[%clk 0:01:21.4]}
22... Bc5+ {[%clk 0:01:00.5]} 23. Kh1 {[%clk 0:01:14.1]} 23... Rxd1+ {[%clk
0:00:59.7]} 24. Nxd1 {[%clk 0:01:14.4]} 24... gxh6 {[%clk 0:00:53.8]} 25. Qxh6
{[%clk 0:01:09.1]} 25... Qd8 {[%clk 0:00:50.6]} 26. c3 {[%clk 0:00:40.8]} 26...
Qd3 {[%clk 0:00:45.1]} 27. Qg5+ {[%clk 0:00:39.4]} 27... Kf8 {[%clk 0:00:40.2]}
28. h4 {[%clk 0:00:37.2]} 28... Qf1+ {[%clk 0:00:34]} 29. Kh2 {[%clk 0:00:36.3]}
29... Qg1+ {[%clk 0:00:25]} 30. Kg3 {[%clk 0:00:30.7]} 30... Be7 {[%clk
0:00:18.6]} 31. Qxe5 {[%clk 0:00:23.7]} 31... Qe1+ {[%clk 0:00:16.4]} 32. Nf2
{[%clk 0:00:22.8]} 32... f6 {[%clk 0:00:11.2]} 33. Qxe6 {[%clk 0:00:20.5]} 33...
Bc5 {[%clk 0:00:10.3]} 34. Qf7# {[%clk 0:00:20]} 1-0

[Event "Late-Titled-Tuesday-Blitz-October-17-2023"]
[Site "Chess.com"]
[Date "2023.10.17"]
[Round "3"]
[White "Cayse"]
[Black "DarkAlekhine"]
[Result "0-1"]
[WhiteElo "2883"]
[BlackElo "2699"]
[TimeControl "180+1"]
[EndTime "14:28:09 PDT"]
[Termination "DarkAlekhine won by resignation"]

1. e4 {[%clk 0:03:00.2]} 1... Nf6 {[%clk 0:02:56.7]} 2. Nc3 {[%clk 0:02:59]}
2... d5 {[%clk 0:02:56.7]} 3. exd5 {[%clk 0:02:59]} 3... Nxd5 {[%clk 0:02:57.6]}
4. Nf3 {[%clk 0:02:59.4]} 4... Nxc3 {[%clk 0:02:49.8]} 5. bxc3 {[%clk
0:03:00.3]} 5... g6 {[%clk 0:02:49.2]} 6. h4 {[%clk 0:03:00.1]} 6... h5 {[%clk
0:02:43.5]} 7. Bc4 {[%clk 0:02:58.6]} 7... Bg7 {[%clk 0:02:38.2]} 8. Ng5 {[%clk
0:02:52.5]} 8... O-O {[%clk 0:02:33.5]} 9. Qf3 {[%clk 0:02:44.1]} 9... Bf5
{[%clk 0:01:57.3]} 10. Qxb7 {[%clk 0:02:41.6]} 10... Nd7 {[%clk 0:01:57.4]} 11.
d4 {[%clk 0:02:41.3]} 11... c5 {[%clk 0:01:41.9]} 12. O-O {[%clk 0:02:38.7]}
12... cxd4 {[%clk 0:01:36.8]} 13. Ba3 {[%clk 0:02:33.2]} 13... Rb8 {[%clk
0:01:34.8]} 14. Qd5 {[%clk 0:01:58.6]} 14... e6 {[%clk 0:01:33.9]} 15. Qd6
{[%clk 0:01:47.5]} 15... Nb6 {[%clk 0:00:46.4]} 16. Bb3 {[%clk 0:01:39]} 16...
a5 {[%clk 0:00:46.4]} 17. cxd4 {[%clk 0:01:13.7]} 17... a4 {[%clk 0:00:44.2]}
18. Nxe6 {[%clk 0:01:13.9]} 18... fxe6 {[%clk 0:00:38.2]} 19. Bxe6+ {[%clk
0:01:13.1]} 19... Kh7 {[%clk 0:00:38.5]} 20. Bxf5 {[%clk 0:01:05.6]} 20... Rxf5
{[%clk 0:00:39.4]} 21. Rab1 {[%clk 0:01:00]} 21... Rd5 {[%clk 0:00:20.2]} 22.
Qg3 {[%clk 0:00:42.6]} 22... Rxd4 {[%clk 0:00:20]} 23. Be7 {[%clk 0:00:38.3]}
23... Qe8 {[%clk 0:00:13.7]} 24. Bc5 {[%clk 0:00:36.8]} 24... Rg4 {[%clk
0:00:13.9]} 25. Qc7 {[%clk 0:00:28.4]} 25... Nd7 {[%clk 0:00:12]} 26. Rxb8
{[%clk 0:00:21]} 26... Nxb8 {[%clk 0:00:12.9]} 27. Rd1 {[%clk 0:00:14.3]} 27...
Na6 {[%clk 0:00:12]} 28. Be3 {[%clk 0:00:13.2]} 28... Nxc7 {[%clk 0:00:11.5]}
0-1

[Event "Late-Titled-Tuesday-Blitz-October-17-2023"]
[Site "Chess.com"]
[Date "2023.10.17"]
[Round "3"]
[White "Sjakkerntobi"]
[Black "FMOlexandrProhorov"]
[Result "0-1"]
[WhiteElo "2477"]
[BlackElo "2318"]
[TimeControl "180+1"]
[EndTime "14:28:10 PDT"]
[Termination "FMOlexandrProhorov won by resignation"]

1. f4 {[%clk 0:03:00.9]} 1... b6 {[%clk 0:02:55.8]} 2. d3 {[%clk 0:02:59.8]}
2... Bb7 {[%clk 0:02:56.7]} 3. e4 {[%clk 0:03:00.3]} 3... c5 {[%clk 0:02:56.7]}
4. Nf3 {[%clk 0:03:00.4]} 4... e6 {[%clk 0:02:57.1]} 5. g3 {[%clk 0:03:01]} 5...
Nf6 {[%clk 0:02:57.2]} 6. Bg2 {[%clk 0:03:01.3]} 6... Be7 {[%clk 0:02:57.7]} 7.
O-O {[%clk 0:03:01.6]} 7... Nc6 {[%clk 0:02:57.8]} 8. Nc3 {[%clk 0:03:02.3]}
8... O-O {[%clk 0:02:57.9]} 9. e5 {[%clk 0:03:02.9]} 9... Ne8 {[%clk 0:02:56.8]}
10. Ne4 {[%clk 0:03:01.4]} 10... f5 {[%clk 0:02:56.1]} 11. exf6 {[%clk
0:03:01.6]} 11... Nxf6 {[%clk 0:02:55.8]} 12. Nfg5 {[%clk 0:03:01.3]} 12... h6
{[%clk 0:02:51.9]} 13. Nxf6+ {[%clk 0:03:00.9]} 13... Bxf6 {[%clk 0:02:52.2]}
14. Ne4 {[%clk 0:03:01.8]} 14... d5 {[%clk 0:02:50.8]} 15. Nxf6+ {[%clk
0:03:01.9]} 15... Qxf6 {[%clk 0:02:50.8]} 16. Qe2 {[%clk 0:03:02.4]} 16... Rae8
{[%clk 0:02:50.9]} 17. c3 {[%clk 0:02:58.6]} 17... d4 {[%clk 0:02:44.5]} 18. c4
{[%clk 0:02:47.9]} 18... Na5 {[%clk 0:02:44]} 19. Bxb7 {[%clk 0:02:37.5]} 19...
Nxb7 {[%clk 0:02:44.9]} 20. a3 {[%clk 0:02:35.6]} 20... Nd6 {[%clk 0:02:44.9]}
21. b4 {[%clk 0:02:35.2]} 21... Nf5 {[%clk 0:02:42.5]} 22. Qe4 {[%clk 0:02:32]}
22... h5 {[%clk 0:02:31.4]} 23. Bd2 {[%clk 0:02:30.9]} 23... h4 {[%clk 0:02:24]}
24. g4 {[%clk 0:02:30]} 24... Nd6 {[%clk 0:02:07.9]} 25. Qc6 {[%clk 0:02:30]}
25... Nf7 {[%clk 0:01:55]} 26. Rae1 {[%clk 0:02:26]} 26... Qg6 {[%clk
0:01:52.6]} 27. Qf3 {[%clk 0:02:23.2]} 27... Ng5 {[%clk 0:01:42.6]} 28. Qg2
{[%clk 0:02:22.2]} 28... Nf7 {[%clk 0:01:36.8]} 29. Rf3 {[%clk 0:02:16.8]} 29...
Nh6 {[%clk 0:01:34]} 30. h3 {[%clk 0:02:16.3]} 30... Nf7 {[%clk 0:01:28.3]} 31.
Qe2 {[%clk 0:02:15.2]} 31... e5 {[%clk 0:01:22.2]} 32. f5 {[%clk 0:02:15]} 32...
Qf6 {[%clk 0:01:16]} 33. Rff1 {[%clk 0:02:13.5]} 33... e4 {[%clk 0:01:07.1]} 34.
dxe4 {[%clk 0:02:13.6]} 34... Qd6 {[%clk 0:01:02.5]} 35. Bf4 {[%clk 0:02:12.6]}
35... Ne5 {[%clk 0:00:58.4]} 36. bxc5 {[%clk 0:02:09.9]} 36... bxc5 {[%clk
0:00:58.2]} 37. Rb1 {[%clk 0:02:05.4]} 37... Qa6 {[%clk 0:00:42.7]} 38. Qh2
{[%clk 0:01:59.1]} 38... Qxa3 {[%clk 0:00:32.7]} 39. Bxe5 {[%clk 0:01:57.5]}
39... Qe3+ {[%clk 0:00:32.2]} 40. Kh1 {[%clk 0:01:56.1]} 40... Qxe4+ {[%clk
0:00:29.8]} 41. Qg2 {[%clk 0:01:52.2]} 41... Qxe5 {[%clk 0:00:29.7]} 42. Rb7
{[%clk 0:01:49]} 42... d3 {[%clk 0:00:19.9]} 43. Rd1 {[%clk 0:01:45.7]} 43...
Qd4 {[%clk 0:00:20.4]} 44. Qd5+ {[%clk 0:01:39.9]} 44... Qxd5+ {[%clk
0:00:20.5]} 45. cxd5 {[%clk 0:01:40.8]} 45... Re3 {[%clk 0:00:17.5]} 46. Kg2
{[%clk 0:01:31.2]} 46... c4 {[%clk 0:00:17.9]} 47. Rc7 {[%clk 0:01:31]} 47...
Rd8 {[%clk 0:00:13]} 48. Rxc4 {[%clk 0:01:29.6]} 48... Rxd5 {[%clk 0:00:13.4]}
49. Rd2 {[%clk 0:01:28.8]} 49... Rde5 {[%clk 0:00:05.7]} 50. Rf4 {[%clk
0:01:09.6]} 50... Rg3+ {[%clk 0:00:04.5]} 51. Kf2 {[%clk 0:01:09.8]} 51... Rxh3
{[%clk 0:00:04.5]} 52. Rf3 {[%clk 0:01:10.3]} 52... Rh2+ {[%clk 0:00:04.4]} 0-1

[Event "Late-Titled-Tuesday-Blitz-October-17-2023"]
[Site "Chess.com"]
[Date "2023.10.17"]
[Round "3"]
[White "vladislavkovalev"]
[Black "SereneSalmon"]
[Result "1-0"]
[WhiteElo "2868"]
[BlackElo "2435"]
[TimeControl "180+1"]
[EndTime "14:28:11 PDT"]
[Termination "vladislavkovalev won by resignation"]

1. e4 {[%clk 0:02:55.2]} 1... e6 {[%clk 0:03:00.1]} 2. d4 {[%clk 0:02:55.2]}
2... d5 {[%clk 0:03:00.6]} 3. e5 {[%clk 0:02:54.5]} 3... c5 {[%clk 0:03:00.9]}
4. c3 {[%clk 0:02:54.9]} 4... Nc6 {[%clk 0:03:01.6]} 5. Nf3 {[%clk 0:02:55.6]}
5... Bd7 {[%clk 0:03:02.2]} 6. Be2 {[%clk 0:02:54.6]} 6... Nge7 {[%clk
0:03:01.6]} 7. Na3 {[%clk 0:02:53.7]} 7... cxd4 {[%clk 0:03:00.3]} 8. cxd4
{[%clk 0:02:53.9]} 8... Nf5 {[%clk 0:03:00.8]} 9. Nc2 {[%clk 0:02:54.1]} 9...
Be7 {[%clk 0:02:59.9]} 10. O-O {[%clk 0:02:48.4]} 10... O-O {[%clk 0:02:59.4]}
11. g3 {[%clk 0:02:45.8]} 11... f6 {[%clk 0:02:56.4]} 12. Bd3 {[%clk 0:02:40.7]}
12... fxe5 {[%clk 0:02:51.3]} 13. Nxe5 {[%clk 0:02:41.6]} 13... Nxe5 {[%clk
0:02:37.1]} 14. dxe5 {[%clk 0:02:42.5]} 14... Rc8 {[%clk 0:02:37.5]} 15. Ne3
{[%clk 0:02:30.4]} 15... Nxe3 {[%clk 0:02:26.1]} 16. Bxe3 {[%clk 0:02:31.3]}
16... Bc5 {[%clk 0:02:19.8]} 17. Qh5 {[%clk 0:01:51.5]} 17... g6 {[%clk
0:01:55]} 18. Bxg6 {[%clk 0:01:51.7]} 18... hxg6 {[%clk 0:01:20.6]} 19. Qxg6+
{[%clk 0:01:52.6]} 19... Kh8 {[%clk 0:01:21.1]} 20. Qh6+ {[%clk 0:01:50.4]}
20... Kg8 {[%clk 0:01:21.2]} 21. Qg6+ {[%clk 0:01:51.2]} 21... Kh8 {[%clk
0:01:21.6]} 22. Qh5+ {[%clk 0:01:51.9]} 22... Kg8 {[%clk 0:01:19.1]} 23. Qg4+
{[%clk 0:01:22.4]} 23... Kf7 {[%clk 0:01:00.3]} 24. Rac1 {[%clk 0:01:22.3]}
24... Bb6 {[%clk 0:00:40]} 25. Qh5+ {[%clk 0:01:08.1]} 25... Kg8 {[%clk
0:00:38.2]} 26. Qg6+ {[%clk 0:01:00.4]} 26... Kh8 {[%clk 0:00:38]} 27. Bg5
{[%clk 0:01:01.1]} 27... Qe8 {[%clk 0:00:31.1]} 28. Qh6+ {[%clk 0:00:53.3]}
28... Kg8 {[%clk 0:00:30.3]} 29. Bf6 {[%clk 0:00:54.2]} 29... Rxf6 {[%clk
0:00:25.5]} 30. exf6 {[%clk 0:00:55.1]} 30... Qf7 {[%clk 0:00:21.2]} 31. Rxc8+
{[%clk 0:00:55]} 31... Bxc8 {[%clk 0:00:20.8]} 32. Re1 {[%clk 0:00:52.3]} 32...
Bd4 {[%clk 0:00:19.6]} 33. Rc1 {[%clk 0:00:30.4]} 33... Bd7 {[%clk 0:00:19.3]}
34. Rc7 {[%clk 0:00:17.7]} 34... Be5 {[%clk 0:00:16]} 35. Qg5+ {[%clk
0:00:16.5]} 35... Kf8 {[%clk 0:00:15]} 36. Qxe5 {[%clk 0:00:17.2]} 1-0

[Event "Late-Titled-Tuesday-Blitz-October-17-2023"]
[Site "Chess.com"]
[Date "2023.10.17"]
[Round "3"]
[White "YouShallNotPass001"]
[Black "mac0504"]
[Result "1-0"]
[WhiteElo "2404"]
[BlackElo "2558"]
[TimeControl "180+1"]
[EndTime "14:28:11 PDT"]
[Termination "YouShallNotPass001 won by resignation"]

1. Nf3 {[%clk 0:03:00.9]} 1... Nc6 {[%clk 0:02:54.7]} 2. e3 {[%clk 0:03:01.8]}
2... d5 {[%clk 0:02:54.8]} 3. d4 {[%clk 0:03:00]} 3... a6 {[%clk 0:02:55.2]} 4.
c4 {[%clk 0:03:00.3]} 4... e6 {[%clk 0:02:54.2]} 5. Nc3 {[%clk 0:02:58.6]} 5...
Nf6 {[%clk 0:02:54.5]} 6. Bd3 {[%clk 0:02:56.6]} 6... Bb4 {[%clk 0:02:54]} 7.
O-O {[%clk 0:02:56.6]} 7... O-O {[%clk 0:02:54.5]} 8. Bd2 {[%clk 0:02:50.6]}
8... Re8 {[%clk 0:02:50.9]} 9. Rc1 {[%clk 0:02:43.2]} 9... dxc4 {[%clk
0:02:50.2]} 10. Bxc4 {[%clk 0:02:42.9]} 10... h6 {[%clk 0:02:44.9]} 11. a3
{[%clk 0:02:40.7]} 11... Bf8 {[%clk 0:02:45]} 12. b4 {[%clk 0:02:26.3]} 12... e5
{[%clk 0:02:34.5]} 13. d5 {[%clk 0:02:25.8]} 13... Nb8 {[%clk 0:02:33.5]} 14. e4
{[%clk 0:02:19.9]} 14... Bg4 {[%clk 0:02:31.5]} 15. h3 {[%clk 0:02:19.5]} 15...
Bh5 {[%clk 0:02:31.1]} 16. Re1 {[%clk 0:02:12.7]} 16... Nbd7 {[%clk 0:02:30.6]}
17. Qc2 {[%clk 0:01:45.4]} 17... Bxf3 {[%clk 0:02:28.8]} 18. gxf3 {[%clk
0:01:45.7]} 18... Nh5 {[%clk 0:02:29.3]} 19. Kh2 {[%clk 0:01:43.1]} 19... Qh4
{[%clk 0:02:28.7]} 20. Be3 {[%clk 0:01:40.5]} 20... Nf4 {[%clk 0:02:23.5]} 21.
Bf1 {[%clk 0:01:32.4]} 21... Bd6 {[%clk 0:02:11.4]} 22. Ne2 {[%clk 0:01:25.6]}
22... Nxe2 {[%clk 0:01:36.1]} 23. Qxe2 {[%clk 0:01:20.5]} 23... Nf8 {[%clk
0:01:33.8]} 24. Bg2 {[%clk 0:01:17.4]} 24... Ng6 {[%clk 0:01:33.7]} 25. Rg1
{[%clk 0:01:17.9]} 25... a5 {[%clk 0:01:18.6]} 26. Qb5 {[%clk 0:01:12.8]} 26...
axb4 {[%clk 0:01:10.4]} 27. axb4 {[%clk 0:01:13.7]} 27... b6 {[%clk 0:00:57.3]}
28. Bf1 {[%clk 0:01:11.9]} 28... Rf8 {[%clk 0:00:50.8]} 29. Rg4 {[%clk 0:01:08]}
29... Qf6 {[%clk 0:00:50.9]} 30. Bc4 {[%clk 0:01:04]} 30... Nh4 {[%clk
0:00:45.7]} 31. Be2 {[%clk 0:01:00.5]} 31... Nxf3+ {[%clk 0:00:34.7]} 32. Bxf3
{[%clk 0:00:56.7]} 32... Qxf3 {[%clk 0:00:35.6]} 33. Bxh6 {[%clk 0:00:42]} 33...
Qxf2+ {[%clk 0:00:31.3]} 34. Rg2 {[%clk 0:00:41]} 34... Qh4 {[%clk 0:00:18.8]}
35. Bg5 {[%clk 0:00:22.8]} 35... Qh5 {[%clk 0:00:17.1]} 36. Rcg1 {[%clk
0:00:22.7]} 36... Ra3 {[%clk 0:00:15.7]} 37. Rg3 {[%clk 0:00:22.9]} 37... Rxg3
{[%clk 0:00:14.2]} 38. Rxg3 {[%clk 0:00:23.8]} 38... Qe2+ {[%clk 0:00:14.5]} 39.
Qxe2 {[%clk 0:00:23.9]} 1-0

[Event "Late-Titled-Tuesday-Blitz-October-17-2023"]
[Site "Chess.com"]
[Date "2023.10.17"]
[Round "3"]
[White "Sanan_Sjugirov"]
[Black "Sokoloco"]
[Result "1-0"]
[WhiteElo "2950"]
[BlackElo "2706"]
[TimeControl "180+1"]
[EndTime "14:28:16 PDT"]
[Termination "Sanan_Sjugirov won by checkmate"]

1. e4 {[%clk 0:03:00.9]} 1... d6 {[%clk 0:02:58.6]} 2. d4 {[%clk 0:03:00.6]}
2... g6 {[%clk 0:02:59.1]} 3. Bd3 {[%clk 0:03:00.5]} 3... Bg7 {[%clk 0:02:59.2]}
4. Nf3 {[%clk 0:03:01.1]} 4... Nf6 {[%clk 0:02:54.4]} 5. O-O {[%clk 0:03:00.6]}
5... O-O {[%clk 0:02:55]} 6. h3 {[%clk 0:02:58.6]} 6... Nc6 {[%clk 0:02:52.4]}
7. c3 {[%clk 0:02:58.4]} 7... e5 {[%clk 0:02:52.6]} 8. Re1 {[%clk 0:02:58.9]}
8... h6 {[%clk 0:02:47.3]} 9. Bc2 {[%clk 0:02:58.6]} 9... Bd7 {[%clk 0:02:46.4]}
10. Nbd2 {[%clk 0:02:57.8]} 10... Nh5 {[%clk 0:02:34.1]} 11. Nf1 {[%clk
0:02:57.5]} 11... Qe7 {[%clk 0:02:30.6]} 12. Ne3 {[%clk 0:02:56.5]} 12... Nf4
{[%clk 0:02:28.7]} 13. Nd5 {[%clk 0:02:56.1]} 13... Nxd5 {[%clk 0:02:27.1]} 14.
exd5 {[%clk 0:02:57]} 14... Nd8 {[%clk 0:02:24.8]} 15. dxe5 {[%clk 0:02:55.7]}
15... dxe5 {[%clk 0:02:25.7]} 16. Bf4 {[%clk 0:02:42.5]} 16... f6 {[%clk
0:02:00]} 17. Bxg6 {[%clk 0:02:40.9]} 17... Nf7 {[%clk 0:02:00.6]} 18. Nh4
{[%clk 0:02:23]} 18... Nd6 {[%clk 0:01:58.4]} 19. Qh5 {[%clk 0:02:01.6]} 19...
f5 {[%clk 0:01:39.5]} 20. Bxh6 {[%clk 0:01:59.7]} 20... Bxh6 {[%clk 0:01:39.6]}
21. Qxh6 {[%clk 0:02:00.6]} 21... e4 {[%clk 0:01:33.1]} 22. Qf4 {[%clk
0:01:34.1]} 22... Kg7 {[%clk 0:01:27.7]} 23. Bh5 {[%clk 0:01:12.5]} 23... Qf6
{[%clk 0:00:46.7]} 24. Re3 {[%clk 0:01:08.9]} 24... Be8 {[%clk 0:00:24.4]} 25.
Rg3+ {[%clk 0:01:07.4]} 25... Kh7 {[%clk 0:00:25.1]} 26. Bg6+ {[%clk 0:01:01.7]}
26... Bxg6 {[%clk 0:00:21.5]} 27. Rxg6 {[%clk 0:01:02.6]} 27... Qxh4 {[%clk
0:00:19.5]} 28. Qxh4+ {[%clk 0:00:59.3]} 28... Kxg6 {[%clk 0:00:20.4]} 29. Qf4
{[%clk 0:00:57.9]} 29... Rae8 {[%clk 0:00:19.5]} 30. Re1 {[%clk 0:00:57.3]}
30... Rg8 {[%clk 0:00:11.3]} 31. b3 {[%clk 0:00:54.7]} 31... Kf6 {[%clk
0:00:11]} 32. c4 {[%clk 0:00:54.7]} 32... b6 {[%clk 0:00:11.8]} 33. Re3 {[%clk
0:00:49.3]} 33... Rg6 {[%clk 0:00:11.1]} 34. Rg3 {[%clk 0:00:48.2]} 34... Rxg3
{[%clk 0:00:10.6]} 35. Qxg3 {[%clk 0:00:49.1]} 35... Re7 {[%clk 0:00:09.1]} 36.
Qf4 {[%clk 0:00:47.3]} 36... Nf7 {[%clk 0:00:09.6]} 37. b4 {[%clk 0:00:40.4]}
37... Ne5 {[%clk 0:00:10.2]} 38. c5 {[%clk 0:00:38.2]} 38... Nd3 {[%clk
0:00:10.5]} 39. Qh6+ {[%clk 0:00:36.5]} 39... Ke5 {[%clk 0:00:11.1]} 40. d6
{[%clk 0:00:36.5]} 40... Rd7 {[%clk 0:00:07.7]} 41. dxc7 {[%clk 0:00:36.1]}
41... Rxc7 {[%clk 0:00:08.6]} 42. Qd6# {[%clk 0:00:36]} 1-0

[Event "Late-Titled-Tuesday-Blitz-October-17-2023"]
[Site "Chess.com"]
[Date "2023.10.17"]
[Round "3"]
[White "Chesstrainer1"]
[Black "elprimo2012mortis"]
[Result "0-1"]
[WhiteElo "2491"]
[BlackElo "2706"]
[TimeControl "180+1"]
[EndTime "14:28:16 PDT"]
[Termination "elprimo2012mortis won on time"]

1. e4 {[%clk 0:02:56.7]} 1... c6 {[%clk 0:03:00]} 2. d4 {[%clk 0:02:56.1]} 2...
d5 {[%clk 0:03:00.9]} 3. e5 {[%clk 0:02:56.5]} 3... Bf5 {[%clk 0:03:00.9]} 4. h4
{[%clk 0:02:57]} 4... h5 {[%clk 0:03:01]} 5. c4 {[%clk 0:02:56.2]} 5... e6
{[%clk 0:03:00.4]} 6. Nc3 {[%clk 0:02:55.7]} 6... dxc4 {[%clk 0:02:59.9]} 7.
Bxc4 {[%clk 0:02:51.6]} 7... Nd7 {[%clk 0:03:00.6]} 8. Nge2 {[%clk 0:02:30.6]}
8... Be7 {[%clk 0:02:44.6]} 9. Ng3 {[%clk 0:02:10.4]} 9... Bg6 {[%clk 0:02:44]}
10. Nge4 {[%clk 0:02:04.2]} 10... Nh6 {[%clk 0:02:38]} 11. Bxh6 {[%clk
0:01:55.3]} 11... Rxh6 {[%clk 0:02:37.8]} 12. Bb3 {[%clk 0:01:43.6]} 12... Qb6
{[%clk 0:02:30.3]} 13. Qd2 {[%clk 0:01:27.5]} 13... O-O-O {[%clk 0:02:27.4]} 14.
Qe3 {[%clk 0:01:23.8]} 14... Bxe4 {[%clk 0:02:06.8]} 15. Nxe4 {[%clk 0:01:18.7]}
15... Rg6 {[%clk 0:01:56.6]} 16. Kf1 {[%clk 0:00:45.2]} 16... Qa6+ {[%clk
0:01:47.5]} 17. Kg1 {[%clk 0:00:43.3]} 17... Nb6 {[%clk 0:01:46.7]} 18. Rc1
{[%clk 0:00:37.8]} 18... Kb8 {[%clk 0:01:32.4]} 19. Rh3 {[%clk 0:00:32.7]} 19...
Rg4 {[%clk 0:01:26.7]} 20. Rf3 {[%clk 0:00:27.5]} 20... Nd5 {[%clk 0:01:18.2]}
21. Bxd5 {[%clk 0:00:19.9]} 21... cxd5 {[%clk 0:01:18.5]} 22. Nc3 {[%clk
0:00:15.1]} 22... f5 {[%clk 0:01:04.4]} 23. g3 {[%clk 0:00:10.4]} 23... Bxh4
{[%clk 0:00:57.4]} 24. Rd1 {[%clk 0:00:07.2]} 24... Bg5 {[%clk 0:00:57.4]} 25.
Qe1 {[%clk 0:00:07.2]} 25... h4 {[%clk 0:00:57.8]} 26. Kg2 {[%clk 0:00:06.2]}
26... Rh8 {[%clk 0:00:54.8]} 27. Qe2 {[%clk 0:00:02.9]} 27... hxg3 {[%clk
0:00:53.5]} 28. fxg3 {[%clk 0:00:02.6]} 28... Qxe2+ {[%clk 0:00:48]} 29. Nxe2
{[%clk 0:00:03.5]} 29... Rc8 {[%clk 0:00:44.5]} 30. Rc3 {[%clk 0:00:01.7]} 30...
Rxc3 {[%clk 0:00:39.1]} 31. bxc3 {[%clk 0:00:02.6]} 31... Re4 {[%clk 0:00:36.1]}
32. Kf2 {[%clk 0:00:03.5]} 32... Be3+ {[%clk 0:00:35.5]} 33. Kf3 {[%clk
0:00:02.5]} 33... Bh6 {[%clk 0:00:36.4]} 34. Rb1 {[%clk 0:00:02.2]} 34... Re3+
{[%clk 0:00:36.2]} 35. Kf2 {[%clk 0:00:02.8]} 35... Rd3 {[%clk 0:00:36.9]} 36.
Rh1 {[%clk 0:00:02.7]} 36... Rd2 {[%clk 0:00:37]} 37. a4 {[%clk 0:00:01.5]}
37... Ra2 {[%clk 0:00:37]} 38. Kf3 {[%clk 0:00:01.4]} 38... Rxa4 {[%clk
0:00:37]} 0-1

[Event "Late-Titled-Tuesday-Blitz-October-17-2023"]
[Site "Chess.com"]
[Date "2023.10.17"]
[Round "3"]
[White "as9killer2"]
[Black "lluiss"]
[Result "1-0"]
[WhiteElo "2517"]
[BlackElo "2174"]
[TimeControl "180+1"]
[EndTime "14:28:16 PDT"]
[Termination "as9killer2 won on time"]

1. c4 {[%clk 0:02:59.1]} 1... Nf6 {[%clk 0:02:59.1]} 2. Nc3 {[%clk 0:02:59.1]}
2... d5 {[%clk 0:02:59.6]} 3. cxd5 {[%clk 0:02:59]} 3... Nxd5 {[%clk 0:03:00.5]}
4. g3 {[%clk 0:02:58]} 4... e5 {[%clk 0:02:59.5]} 5. Bg2 {[%clk 0:02:58]} 5...
Nb6 {[%clk 0:02:59.7]} 6. d3 {[%clk 0:02:57.6]} 6... Be7 {[%clk 0:02:56.3]} 7.
a4 {[%clk 0:02:53.6]} 7... a5 {[%clk 0:02:47.3]} 8. Be3 {[%clk 0:02:53.2]} 8...
O-O {[%clk 0:02:43.8]} 9. Bxb6 {[%clk 0:02:45.8]} 9... cxb6 {[%clk 0:02:43.2]}
10. Nf3 {[%clk 0:02:46.7]} 10... Nc6 {[%clk 0:02:40.8]} 11. O-O {[%clk
0:02:47.6]} 11... f6 {[%clk 0:02:24.4]} 12. h3 {[%clk 0:02:42.5]} 12... Be6
{[%clk 0:02:23]} 13. e3 {[%clk 0:02:41.7]} 13... Qd7 {[%clk 0:02:19.2]} 14. d4
{[%clk 0:02:36.6]} 14... Bxh3 {[%clk 0:02:15.9]} 15. dxe5 {[%clk 0:02:29.1]}
15... Qxd1 {[%clk 0:02:13.3]} 16. Raxd1 {[%clk 0:02:26.8]} 16... Bxg2 {[%clk
0:02:12.9]} 17. Kxg2 {[%clk 0:02:26.8]} 17... fxe5 {[%clk 0:01:48]} 18. Rd7
{[%clk 0:02:21.8]} 18... Rab8 {[%clk 0:01:21.4]} 19. Nd5 {[%clk 0:02:00.9]}
19... Bc5 {[%clk 0:01:20.8]} 20. Rd1 {[%clk 0:01:52.1]} 20... Rfd8 {[%clk
0:01:16.9]} 21. Nc7 {[%clk 0:01:39.2]} 21... Rxd7 {[%clk 0:01:12.9]} 22. Rxd7
{[%clk 0:01:36.6]} 22... Rd8 {[%clk 0:01:12.5]} 23. Rxd8+ {[%clk 0:01:32.2]}
23... Nxd8 {[%clk 0:01:12.2]} 24. Ng5 {[%clk 0:01:23.6]} 24... Nf7 {[%clk
0:01:03.2]} 25. Ne4 {[%clk 0:01:18.3]} 25... Nd6 {[%clk 0:00:50.8]} 26. Nxd6
{[%clk 0:01:16.8]} 26... Bxd6 {[%clk 0:00:50.9]} 27. Nb5 {[%clk 0:01:17.1]}
27... Bb4 {[%clk 0:00:36.1]} 28. g4 {[%clk 0:01:07.7]} 28... Kf7 {[%clk
0:00:35.3]} 29. Kf3 {[%clk 0:01:06.4]} 29... Ke6 {[%clk 0:00:32.3]} 30. Ke4
{[%clk 0:01:06.4]} 30... Be1 {[%clk 0:00:31.5]} 31. f4 {[%clk 0:01:06.3]} 31...
exf4 {[%clk 0:00:31.5]} 32. exf4 {[%clk 0:01:07.2]} 32... g6 {[%clk 0:00:30.2]}
33. Nc7+ {[%clk 0:01:00.3]} 33... Kd6 {[%clk 0:00:26]} 34. Nd5 {[%clk
0:01:00.6]} 34... Bf2 {[%clk 0:00:25.9]} 35. g5 {[%clk 0:00:59.8]} 35... Bc5
{[%clk 0:00:21.5]} 36. Nf6 {[%clk 0:00:59.5]} 36... Ke6 {[%clk 0:00:20.3]} 37.
Nxh7 {[%clk 0:00:59.6]} 37... Bb4 {[%clk 0:00:19.3]} 38. Nf6 {[%clk 0:00:57.5]}
38... Bd2 {[%clk 0:00:19.3]} 39. Nd5 {[%clk 0:00:57]} 39... Bc1 {[%clk
0:00:19.6]} 40. b3 {[%clk 0:00:56.8]} 40... Kd6 {[%clk 0:00:15.3]} 41. Nxb6
{[%clk 0:00:55.3]} 41... Kc6 {[%clk 0:00:14.7]} 42. Nc4 {[%clk 0:00:52.9]} 42...
b5 {[%clk 0:00:04.3]} 43. Ne5+ {[%clk 0:00:49.5]} 43... Kc5 {[%clk 0:00:03.9]}
44. Nd3+ {[%clk 0:00:49.8]} 1-0